bitfinex-derivatives/quotes_BTCF0:USTF0_20250427
["timestamp","ask_amount","ask_price","bid_price","bid_amount"]
[1745773001271,0.6894,93776.0,93775.0,0.32567987]
[1745773001871,0.9026059,93776.0,93775.0,0.32567987]
[1745773003761,0.6894,93776.0,93775.0,0.32567987]
[1745773004467,0.7271,93776.0,93775.0,0.32567987]
[1745773005365,0.6894,93776.0,93775.0,0.32567987]
[1745773007270,0.651,93776.0,93775.0,0.32567987]
[1745773007573,0.2131593,93797.0,93775.0,0.46910767]
[1745773007768,0.0362,93785.0,93784.0,0.2131877]
[1745773007969,0.1962,93785.0,93784.0,0.5739877]
[1745773008174,0.1962,93785.0,93784.0,0.6939877]
[1745773008379,0.16,93785.0,93784.0,0.6939877]
[1745773008879,0.16,93785.0,93784.0,0.80061569]
[1745773009089,0.66,93785.0,93784.0,0.80061569]
[1745773009280,0.662,93785.0,93784.0,0.80061569]
[1745773010781,0.664,93785.0,93784.0,0.80061569]
[1745773011373,0.24,93795.0,93790.0,0.053293]
[1745773011374,0.02,93795.0,93790.0,0.053293]
[1745773011574,0.16,93795.0,93794.0,0.3608]
[1745773011866,0.0376,93819.0,93818.0,0.2131104]
[1745773012068,0.1876,93819.0,93818.0,0.2131104]
[1745773012273,0.15,93819.0,93818.0,0.2131104]
[1745773013075,0.65,93819.0,93818.0,0.2131104]
[1745773013475,0.652,93819.0,93818.0,0.2131104]
[1745773014070,0.65,93819.0,93818.0,0.2131104]
[1745773014272,0.655,93819.0,93818.0,0.2131104]
[1745773015475,0.655,93819.0,93818.0,0.5739104]
[1745773015675,0.653,93819.0,93818.0,0.5739104]
[1745773016177,0.653,93819.0,93818.0,0.60327966]
[1745773026986,0.652,93819.0,93818.0,0.60327966]
[1745773027287,0.652,93819.0,93818.0,0.70986765]
[1745773027887,0.652,93819.0,93818.0,0.74596765]
[1745773028074,0.652,93819.0,93818.0,0.90346765]
[1745773030387,0.652,93819.0,93818.0,0.79687966]
[1745773031384,0.7261,93819.0,93818.0,0.79687966]
[1745773035977,0.7261,93819.0,93818.0,0.75937966]
[1745773049186,0.7241,93819.0,93818.0,0.75937966]
[1745773049894,0.7251,93819.0,93818.0,0.75937966]
[1745773051289,0.7241,93819.0,93818.0,0.75937966]
[1745773051494,0.7251,93819.0,93818.0,0.75937966]
[1745773051997,0.7261,93819.0,93818.0,0.72327966]
[1745773058299,0.7251,93819.0,93818.0,0.72327966]
[1745773060208,0.7251,93819.0,93818.0,0.60327966]
[1745773061194,0.7251,93819.0,93818.0,0.72327966]
[1745773062205,0.7251,93819.0,93818.0,0.60327966]
[1745773062505,0.6882,93819.0,93818.0,0.60327966]
[1745773063098,0.6882,93819.0,93818.0,0.80077966]
[1745773064207,0.6882,93819.0,93818.0,0.68077966]
[1745773067311,0.6882,93819.0,93818.0,0.71717966]
[1745773068202,0.6882,93819.0,93818.0,0.68077966]
[1745773069308,0.6882,93819.0,93818.0,0.60327966]
[1745773072108,0.8082,93819.0,93818.0,0.60327966]
[1745773073506,0.8453,93819.0,93818.0,0.60327966]
[1745773075102,1.0584082,93819.0,93818.0,0.60327966]
[1745773075302,0.8453,93819.0,93818.0,0.60327966]
[1745773075614,1.0584082,93819.0,93818.0,0.60327966]
[1745773075808,0.8453,93819.0,93818.0,0.60327966]
[1745773080203,0.7253,93819.0,93818.0,0.60327966]
[1745773081311,0.8453,93819.0,93818.0,0.60327966]
[1745773081905,1.0584082,93819.0,93818.0,0.60327966]
[1745773082213,0.8453,93819.0,93818.0,0.60327966]
[1745773082808,1.0584082,93819.0,93818.0,0.60327966]
[1745773083203,0.9384082,93819.0,93818.0,0.60327966]
[1745773084314,0.9384082,93819.0,93818.0,0.24247966]
[1745773090111,0.7253,93819.0,93818.0,0.24247966]
[1745773091107,0.9384082,93819.0,93818.0,0.24247966]
[1745773093316,0.7253,93819.0,93818.0,0.24247966]
[1745773094110,0.7253,93819.0,93818.0,0.27777966]
[1745773095415,0.6882,93819.0,93818.0,0.31187966]
[1745773102031,0.7253,93819.0,93818.0,0.27777966]
[1745773110537,0.9384082,93819.0,93818.0,0.27777966]
[1745773110739,0.9384082,93819.0,93818.0,0.24247966]
[1745773115032,0.9384082,93819.0,93818.0,0.02936926]
[1745773115336,0.2131377,93807.0,93806.0,0.2131377]
[1745773115525,0.3631377,93807.0,93806.0,0.2131377]
[1745773115729,0.4709377,93807.0,93806.0,0.2131377]
[1745773116639,0.4709377,93807.0,93806.0,0.2151377]
[1745773117038,0.9709377,93807.0,93806.0,0.2171377]
[1745773117233,0.9709377,93807.0,93806.0,0.24063394]
[1745773118031,0.9759377,93807.0,93806.0,0.23663394]
[1745773130041,0.7628,93807.0,93806.0,0.23663394]
[1745773130242,0.28367578,93819.0,93806.0,0.02349624]
[1745773130442,0.47737292,93830.0,93827.0,0.0532721]
[1745773130644,0.5208,93830.0,93829.0,0.2130855]
[1745773130845,0.7338832,93830.0,93829.0,0.2130855]
[1745773131647,0.7418832,93830.0,93829.0,0.2130855]
[1745773132034,1.2418832,93830.0,93829.0,0.2130855]
[1745773132236,1.2418832,93830.0,93829.0,0.2140855]
[1745773132447,1.2498832,93830.0,93829.0,0.2150855]
[1745773132831,1.2498832,93830.0,93829.0,0.22304233]
[1745773133441,1.2448832,93830.0,93829.0,0.22204233]
[1745773133744,1.0611,93830.0,93829.0,0.22104233]
[1745773133943,1.0611,93830.0,93829.0,0.25604233]
[1745773134445,1.0268,93830.0,93829.0,0.25604233]
[1745773134637,1.0268,93830.0,93829.0,0.29094233]
[1745773134837,1.0238,93830.0,93829.0,0.29094233]
[1745773135143,1.0278,93830.0,93829.0,0.29094233]
[1745773136042,1.0278,93830.0,93829.0,0.25604233]
[1745773136846,1.0278,93830.0,93829.0,0.29354233]
[1745773137149,1.0278,93830.0,93829.0,0.41354233]
[1745773138149,1.0278,93830.0,93829.0,0.29354233]
[1745773138834,1.0258,93830.0,93829.0,0.29354233]
[1745773140347,1.0228,93830.0,93829.0,0.29354233]
[1745773140649,0.665,93830.0,93829.0,0.29354233]
[1745773140847,0.6251254,93830.0,93829.0,0.29354233]
[1745773141150,0.6241254,93830.0,93829.0,0.77434233]
[1745773141349,0.6261254,93830.0,93829.0,0.77434233]
[1745773141753,0.6261254,93830.0,93829.0,0.84058233]
[1745773142148,0.6241254,93830.0,93829.0,0.84058233]
[1745773142351,0.6251254,93830.0,93829.0,0.84058233]
[1745773143352,0.03596427,93840.0,93829.0,0.98407283]
[1745773143651,0.0013,93851.0,93850.0,0.2130378]
[1745773143850,0.0213,93851.0,93850.0,0.5738378]
[1745773144053,0.0213,93851.0,93850.0,0.6938378]
[1745773144251,0.00144,93856.0,93855.0,0.2130264]
[1745773144457,0.15144,93856.0,93855.0,0.2130264]
[1745773145055,0.65144,93856.0,93855.0,0.2130264]
[1745773145242,0.65144,93856.0,93855.0,0.5180744]
[1745773146055,0.65244,93856.0,93855.0,0.5180744]
[1745773146356,0.65344,93856.0,93855.0,0.5180744]
[1745773147057,0.5852024,93856.0,93855.0,0.5180744]
[1745773147262,0.2142693,93856.0,93855.0,1.6616044]
[1745773147454,0.0013,93881.0,93880.0,0.2129697]
[1745773147647,0.1513,93881.0,93880.0,0.5737697]
[1745773148554,0.1603,93881.0,93880.0,0.6505697]
[1745773149151,0.6603,93881.0,93880.0,0.6505697]
[1745773149750,0.6683,93881.0,93880.0,0.6505697]
[1745773150862,0.18916834,93890.0,93887.0,0.2129538]
[1745773151159,0.16354166,93890.0,93889.0,0.2129493]
[1745773151348,0.30354166,93890.0,93889.0,0.5737493]
[1745773151746,0.30354166,93890.0,93889.0,0.6516493]
[1745773152157,0.80354166,93890.0,93889.0,0.7716493]
[1745773152358,0.80354166,93890.0,93889.0,0.8781573]
[1745773153152,0.80454166,93890.0,93889.0,0.8781573]
[1745773154147,0.80454166,93890.0,93889.0,0.7716493]
[1745773155954,0.80454166,93890.0,93889.0,1.1324493]
[1745773157651,0.641,93890.0,93889.0,1.2389573]
[1745773158058,0.641,93890.0,93889.0,1.1324493]
[1745773158252,0.57281567,93890.0,93889.0,1.1324493]
[1745773158464,0.53780369,93890.0,93889.0,1.2389573]
[1745773158665,0.26490527,93890.0,93889.0,1.2389573]
[1745773158854,0.14,93900.0,93899.0,0.2129266]
[1745773159060,0.27,93900.0,93899.0,0.7598866]
[1745773159265,0.26301501,93900.0,93899.0,0.7598866]
[1745773159966,0.26401501,93900.0,93899.0,0.8352866]
[1745773160160,0.76401501,93900.0,93899.0,0.8352866]
[1745773160363,0.76901501,93900.0,93899.0,0.8352866]
[1745773160758,0.55680381,93900.0,93899.0,0.9417826]
[1745773161163,0.506,93900.0,93899.0,0.9417826]
[1745773162563,0.505,93900.0,93899.0,0.9427826]
[1745773162962,0.38007025,93900.0,93899.0,0.9427826]
[1745773163167,0.24940105,93900.0,93899.0,0.9427826]
[1745773163571,0.0386,93926.0,93899.0,0.663696]
[1745773163770,0.1652,93918.0,93917.0,0.9344858]
[1745773164068,0.1652,93918.0,93917.0,1.1206458]
[1745773164462,0.1652,93918.0,93917.0,1.1990458]
[1745773165059,0.6652,93918.0,93917.0,1.1990458]
[1745773165258,0.6702,93918.0,93917.0,1.1990458]
[1745773167159,0.6702,93918.0,93917.0,1.0790458]
[1745773168970,0.6702,93918.0,93917.0,1.14672179]
[1745773169162,0.6702,93918.0,93917.0,1.26672179]
[1745773169565,0.6702,93918.0,93917.0,1.30432179]
[1745773169870,0.1702,93918.0,93917.0,1.1602458]
[1745773170170,0.1702,93918.0,93917.0,1.0402458]
[1745773170869,0.1662,93918.0,93917.0,1.0402458]
[1745773171059,0.6662,93918.0,93917.0,1.0402458]
[1745773171770,0.63434648,93918.0,93917.0,1.14672179]
[1745773171970,0.60668148,93918.0,93917.0,1.14672179]
[1745773172172,0.60668148,93918.0,93917.0,1.26672179]
[1745773172467,0.60668148,93918.0,93917.0,1.20056179]
[1745773172673,0.60668148,93918.0,93917.0,1.26672179]
[1745773177777,0.60668148,93918.0,93917.0,1.1206058]
[1745773177974,0.60668148,93918.0,93917.0,1.0544858]
[1745773178166,0.56662131,93918.0,93917.0,1.0006058]
[1745773179376,0.38638038,93918.0,93917.0,1.0006058]
[1745773179672,0.0374,93936.0,93917.0,1.25023557]
[1745773179873,0.0759,93927.0,93926.0,0.2128654]
[1745773180076,0.2159,93927.0,93926.0,0.5736654]
[1745773180370,0.2159,93927.0,93926.0,0.6397854]
[1745773181480,0.2179,93927.0,93926.0,0.6397854]
[1745773182071,0.7179,93927.0,93926.0,0.6397854]
[1745773183269,0.7179,93927.0,93926.0,0.5736654]
[1745773183574,0.3847517,93927.0,93926.0,0.7462534]
[1745773183778,0.3847517,93927.0,93926.0,0.6397854]
[1745773184173,0.3847517,93927.0,93926.0,0.6783854]
[1745773184669,0.3857517,93927.0,93926.0,0.6783854]
[1745773185272,0.3847517,93927.0,93926.0,0.6783854]
[1745773185582,0.3857517,93927.0,93926.0,0.6783854]
[1745773187875,0.3857517,93927.0,93926.0,0.89481848]
[1745773189580,0.3857517,93927.0,93926.0,0.79009848]
[1745773189979,0.3857517,93927.0,93926.0,0.85621848]
[1745773190183,0.5057517,93927.0,93926.0,0.85621848]
[1745773192087,0.5057517,93927.0,93926.0,0.6397854]
[1745773192982,0.5057517,93927.0,93926.0,0.2789854]
[1745773193185,0.3857517,93927.0,93926.0,0.6397854]
[1745773195482,0.38594339,93927.0,93926.0,0.6397854]
[1745773196183,0.38594339,93927.0,93926.0,0.85621848]
[1745773199880,0.38594339,93927.0,93926.0,0.6397854]
[1745773205982,0.38594339,93927.0,93926.0,0.3608]
[1745773206185,0.38594339,93927.0,93926.0,0.5736654]
[1745773206186,0.50594339,93927.0,93926.0,0.5736654]
[1745773207984,0.50594339,93927.0,93926.0,0.2128654]
[1745773208186,0.50594339,93927.0,93926.0,0.5736654]
[1745773208889,0.50594339,93927.0,93926.0,0.2128654]
[1745773209091,0.50594339,93927.0,93926.0,0.5736654]
[1745773214998,0.50594339,93927.0,93926.0,0.2128654]
[1745773215295,0.50594339,93927.0,93926.0,0.5736654]
[1745773216698,0.50594339,93927.0,93926.0,0.2128654]
[1745773217201,0.50594339,93927.0,93926.0,0.5736654]
[1745773218805,0.50594339,93927.0,93926.0,0.2128654]
[1745773219103,0.50594339,93927.0,93926.0,0.5736654]
[1745773223804,0.053219,93922.0,93919.0,0.2660968]
[1745773223990,0.1191,93921.0,93920.0,0.212879]
[1745773224193,0.2691,93921.0,93920.0,0.212879]
[1745773224594,0.2691,93921.0,93920.0,0.252679]
[1745773225190,0.3891,93921.0,93920.0,0.252679]
[1745773225395,0.73385,93921.0,93920.0,0.252679]
[1745773225796,0.73385,93921.0,93920.0,0.253679]
[1745773227392,0.73385,93921.0,93920.0,0.213879]
[1745773227603,0.84032201,93921.0,93908.0,0.16275287]
[1745773227804,0.2128994,93911.0,93910.0,0.5737003]
[1745773227998,0.3628994,93911.0,93910.0,0.5737003]
[1745773228196,0.4828994,93911.0,93910.0,0.5737003]
[1745773228509,0.27,93911.0,93910.0,0.5737003]
[1745773229106,0.4828994,93911.0,93910.0,0.5737003]
[1745773229309,0.9038494,93911.0,93910.0,0.5737003]
[1745773229803,0.9038494,93911.0,93910.0,0.5757003]
[1745773230305,0.9038494,93911.0,93910.0,0.5737003]
[1745773230905,0.9038494,93911.0,93910.0,0.5757003]
[1745773231698,0.9038494,93911.0,93910.0,0.5737003]
[1745773233906,0.9038494,93911.0,93910.0,0.2129003]
[1745773234801,0.9038494,93911.0,93903.0,0.0532291]
[1745773234802,0.797434,93911.0,93896.0,0.053233]
[1745773235002,0.2129311,93897.0,93896.0,0.3048592]
[1745773235207,0.3729311,93897.0,93896.0,0.3048592]
[1745773235895,0.4492311,93897.0,93896.0,0.3048592]
[1745773236098,0.5692311,93897.0,93896.0,0.3048592]
[1745773236603,0.2129357,93895.0,93894.0,0.3608]
[1745773236803,0.2661886,93890.0,93889.0,0.2129447]
[1745773236993,0.7769886,93890.0,93889.0,0.2129447]
[1745773237404,0.2129515,93888.0,93887.0,0.00532552]
[1745773237709,0.3629515,93888.0,93887.0,0.00532552]
[1745773238110,0.5593515,93888.0,93887.0,0.00532552]
[1745773238807,0.5593515,93888.0,93887.0,0.21827932]
[1745773239006,0.5593515,93888.0,93887.0,0.01032552]
[1745773239904,0.9041015,93888.0,93887.0,0.01032552]
[1745773240209,0.9041015,93888.0,93887.0,0.22327932]
[1745773240409,0.9041015,93888.0,93887.0,0.01432552]
[1745773241905,0.0532399,93885.0,93882.0,0.0376]
[1745773242106,0.2129765,93877.0,93876.0,0.0371]
[1745773242312,0.0532485,93870.0,93865.0,0.077]
[1745773242609,0.0532524,93863.0,93860.0,0.21407141]
[1745773242808,0.2529128,93862.0,93861.0,0.2662654]
[1745773242996,0.4129128,93862.0,93861.0,0.2662654]
[1745773243201,0.4129128,93862.0,93861.0,0.27428903]
[1745773243407,0.4129128,93862.0,93861.0,0.00802363]
[1745773243600,0.8142128,93862.0,93861.0,0.2130128]
[1745773244205,0.9342128,93862.0,93861.0,0.00804121]
[1745773244402,0.2130128,93861.0,93860.0,0.00106541]
[1745773244598,0.3730128,93861.0,93860.0,0.00106541]
[1745773244806,0.4519128,93861.0,93860.0,0.00106541]
[1745773245107,0.5719128,93861.0,93860.0,0.00106541]
[1745773245607,0.5719128,93861.0,93860.0,0.00306541]
[1745773245803,0.5719128,93861.0,93860.0,0.21608051]
[1745773246600,0.5719128,93861.0,93860.0,0.00306541]
[1745773247005,0.5719128,93861.0,93860.0,0.00706541]
[1745773247207,0.9166628,93861.0,93860.0,0.00706541]
[1745773247412,0.2130173,93859.0,93858.0,0.2524195]
[1745773247604,0.3730173,93859.0,93858.0,0.2524195]
[1745773248201,0.4930173,93859.0,93858.0,0.2524195]
[1745773248408,0.4930173,93859.0,93858.0,0.26022498]
[1745773248609,0.4930173,93859.0,93858.0,0.30692498]
[1745773248804,0.8377673,93859.0,93858.0,0.30692498]
[1745773251209,0.7177673,93859.0,93858.0,0.30692498]
[1745773252030,0.50475,93859.0,93858.0,0.30692498]
[1745773253119,0.7177673,93859.0,93858.0,0.30692498]
[1745773257913,0.50475,93859.0,93858.0,0.30692498]
[1745773259114,0.50475,93859.0,93858.0,0.42692498]
[1745773261219,0.50475,93859.0,93858.0,0.30692498]
[1745773262218,0.50475,93859.0,93858.0,0.42692498]
[1745773270223,0.50475,93859.0,93858.0,0.45932498]
[1745773271422,0.50475,93859.0,93858.0,0.52544498]
[1745773281824,0.50475,93859.0,93858.0,0.45932498]
[1745773282032,0.50475,93859.0,93858.0,0.52544498]
[1745773284339,0.50475,93859.0,93858.0,0.40544498]
[1745773289255,0.50475,93859.0,93858.0,0.52544498]
[1745773290157,0.50475,93859.0,93858.0,0.40544498]
[1745773297460,0.03565001,93868.0,93867.0,0.2129992]
[1745773297660,0.15,93868.0,93867.0,0.5737992]
[1745773298062,0.15,93868.0,93867.0,0.7049992]
[1745773298463,0.15,93868.0,93867.0,0.7059992]
[1745773299165,0.13516962,93878.0,93877.0,0.2129765]
[1745773299472,0.26516962,93878.0,93877.0,0.2129765]
[1745773299765,0.13,93878.0,93877.0,0.2129765]
[1745773299966,0.13,93878.0,93877.0,0.3016765]
[1745773300474,0.631,93878.0,93877.0,0.3016765]
[1745773300669,0.632,93878.0,93877.0,0.3016765]
[1745773301369,0.63,93878.0,93877.0,0.3036765]
[1745773302068,0.63,93878.0,93877.0,0.3026765]
[1745773305576,0.63,93878.0,93877.0,0.2576765]
[1745773306078,0.63,93878.0,93877.0,0.2566765]
[1745773314878,0.42533688,93878.0,93877.0,0.36319649]
[1745773315172,0.24136802,93878.0,93877.0,0.48319649]
[1745773315671,0.0476,93890.0,93889.0,0.2129493]
[1745773315876,0.15,93890.0,93889.0,0.2790293]
[1745773316270,0.15,93890.0,93889.0,0.4905293]
[1745773317176,0.65,93890.0,93889.0,0.4925293]
[1745773318065,0.65,93890.0,93889.0,0.4945293]
[1745773325881,0.65,93890.0,93889.0,0.4935293]
[1745773326178,0.65,93890.0,93889.0,0.4925293]
[1745773326768,0.65,93890.0,93889.0,0.8533293]
[1745773326976,0.65,93890.0,93889.0,0.8523293]
[1745773327184,0.65,93890.0,93889.0,0.8543293]
[1745773327478,0.65,93890.0,93889.0,0.8553293]
[1745773332787,1.0108,93890.0,93865.0,0.57883096]
[1745773332974,0.3608,93882.0,93871.0,0.21599997]
[1745773333180,0.2129742,93878.0,93877.0,0.06608]
[1745773333475,0.2129878,93872.0,93871.0,0.16275287]
[1745773333675,0.7337878,93872.0,93871.0,0.16275287]
[1745773333878,0.5208,93872.0,93871.0,0.37574297]
[1745773334078,0.6408,93872.0,93871.0,0.2129901]
[1745773334279,0.735,93872.0,93871.0,0.2129901]
[1745773336481,1.235,93872.0,93871.0,0.2129901]
[1745773338878,1.1873,93872.0,93871.0,0.2129901]
[1745773339079,1.0673,93872.0,93871.0,0.2635901]
[1745773340280,0.7065,93872.0,93871.0,0.2635901]
[1745773347500,0.66,93872.0,93871.0,0.2635901]
[1745773347797,0.66,93872.0,93871.0,0.3701181]
[1745773348185,0.66,93872.0,93871.0,0.4901181]
[1745773349195,0.19706419,93872.0,93871.0,1.2727581]
[1745773349393,3e-08,93872.0,93871.0,1.2727581]
[1745773349584,0.046,93890.0,93889.0,0.2129493]
[1745773349789,0.13,93890.0,93889.0,0.2790293]
[1745773350087,0.13,93890.0,93889.0,0.3990293]
[1745773350691,0.13,93890.0,93889.0,0.4000293]
[1745773351197,0.63,93890.0,93889.0,0.4000293]
[1745773351997,0.63,93890.0,93889.0,0.4020293]
[1745773353091,0.41929177,93890.0,93889.0,0.5085373]
[1745773353284,0.18218857,93890.0,93889.0,0.6085373]
[1745773353695,0.00532,93895.0,93894.0,0.2129379]
[1745773353996,0.094,93907.0,93906.0,0.2129107]
[1745773354298,0.2068,93907.0,93906.0,0.2789907]
[1745773355094,0.7088,93907.0,93906.0,0.3738907]
[1745773356386,0.7108,93907.0,93906.0,0.3738907]
[1745773356988,0.7108,93907.0,93906.0,0.38187947]
[1745773357798,0.7108,93907.0,93906.0,0.3972653]
[1745773368119,0.52451757,93907.0,93906.0,0.9645533]
[1745773368306,0.0465,93929.0,93928.0,0.2128609]
[1745773368506,0.1965,93929.0,93928.0,0.2789409]
[1745773370115,0.6965,93929.0,93928.0,0.2789409]
[1745773370418,0.7055,93929.0,93928.0,0.2799409]
[1745773370716,0.7085,93929.0,93928.0,0.2799409]
[1745773371621,0.7557,93929.0,93928.0,0.2799409]
[1745773375815,0.9685586,93929.0,93928.0,0.06708]
[1745773376009,0.9685586,93929.0,93928.0,0.001]
[1745773376209,0.2128745,93922.0,93921.0,0.06608]
[1745773376411,0.7236745,93922.0,93921.0,0.06608]
[1745773376721,0.7236745,93922.0,93921.0,0.2789567]
[1745773377220,1.3436745,93922.0,93921.0,0.2789567]
[1745773377423,1.3486745,93922.0,93921.0,0.2789567]
[1745773377720,1.3516745,93922.0,93921.0,0.2789567]
[1745773379116,1.3516745,93922.0,93921.0,0.2128767]
[1745773379713,1.1388,93922.0,93921.0,0.2128767]
[1745773380118,1.2347,93922.0,93921.0,0.2128767]
[1745773382111,1.4475745,93922.0,93921.0,0.2128767]
[1745773384221,1.0867745,93922.0,93921.0,0.2128767]
[1745773384427,1.4475745,93922.0,93921.0,0.2128767]
[1745773389126,1.3275745,93922.0,93921.0,0.2128767]
[1745773390215,1.4475745,93922.0,93921.0,0.2128767]
[1745773397838,0.2129085,93910.0,93909.0,0.2661252]
[1745773398135,0.2128982,93912.0,93911.0,0.2128971]
[1745773398331,0.3628982,93912.0,93911.0,0.2590971]
[1745773398531,0.4605982,93912.0,93911.0,0.3100971]
[1745773398732,0.4605982,93912.0,93911.0,0.3602971]
[1745773399137,0.5805982,93912.0,93911.0,0.3602971]
[1745773399828,1.0805982,93912.0,93911.0,0.3602971]
[1745773400133,1.0835982,93912.0,93911.0,0.3602971]
[1745773400635,1.0865982,93912.0,93911.0,0.3602971]
[1745773406236,0.776,93912.0,93911.0,0.7210971]
[1745773407136,0.656,93912.0,93911.0,0.8410971]
[1745773409236,0.656,93912.0,93911.0,0.7210971]
[1745773411138,0.656,93912.0,93911.0,0.3602971]
[1745773418243,0.656,93912.0,93911.0,0.4802971]
[1745773418443,0.156,93912.0,93911.0,0.4802971]
[1745773420345,0.14322167,93912.0,93911.0,0.4802971]
[1745773422137,0.14322167,93912.0,93911.0,0.3602971]
[1745773422435,0.64322167,93912.0,93911.0,0.3761371]
[1745773423739,0.64322167,93912.0,93911.0,0.0462]
[1745773424047,0.2129085,93907.0,93906.0,0.00800736]
[1745773424244,0.3429085,93907.0,93906.0,0.2129107]
[1745773424434,0.13,93907.0,93906.0,0.2129107]
[1745773424738,0.2235,93907.0,93906.0,0.2606107]
[1745773425143,0.3455,93907.0,93906.0,0.2606107]
[1745773425550,0.8455,93907.0,93906.0,0.2606107]
[1745773426740,0.8475,93907.0,93906.0,0.2606107]
[1745773429144,0.8475,93907.0,93906.0,0.26868725]
[1745773431840,0.8476588,93907.0,93906.0,0.26868725]
[1745773434342,0.7276588,93907.0,93906.0,0.26868725]
[1745773441246,0.7276588,93907.0,93906.0,0.32008725]
[1745773441752,0.6341588,93907.0,93906.0,0.42657525]
[1745773441936,0.6341588,93907.0,93906.0,0.78737525]
[1745773442244,0.5041588,93907.0,93906.0,0.90737525]
[1745773443439,0.0041588,93907.0,93906.0,0.90737525]
[1745773445249,0.0041588,93907.0,93906.0,0.80088725]
[1745773445753,0.13516962,93942.0,93934.0,0.2128473]
[1745773445944,0.61924393,93935.0,93934.0,0.2128473]
[1745773446145,1.11924393,93935.0,93934.0,0.2128473]
[1745773447049,1.13024393,93935.0,93934.0,0.2138473]
[1745773447643,1.0218,93935.0,93934.0,0.2138473]
[1745773449248,1.0218,93935.0,93934.0,0.2623473]
[1745773453555,0.5693581,93935.0,93934.0,0.7296033]
[1745773453749,0.31148031,93935.0,93934.0,1.2618933]
[1745773453952,0.09782531,93935.0,93934.0,0.8296033]
[1745773454143,0.11364393,93948.0,93940.0,0.2128337]
[1745773454652,0.11364393,93948.0,93947.0,0.2128178]
[1745773454653,0.0052,93948.0,93947.0,0.2128178]
[1745773454851,0.1652,93948.0,93940.0,0.1]
[1745773455058,0.3608,93941.0,93935.0,0.0512]
[1745773455246,0.0542114,93935.0,93930.0,0.06604]
[1745773455562,0.0516,93934.0,93930.0,0.06604]
[1745773455853,0.2128881,93916.0,93915.0,0.06763698]
[1745773456054,0.7136881,93916.0,93915.0,0.00159698]
[1745773456253,0.8201681,93916.0,93915.0,0.00159698]
[1745773456753,0.8717681,93916.0,93915.0,0.00159698]
[1745773456955,0.8717681,93916.0,93915.0,0.00359698]
[1745773457154,0.9917681,93916.0,93915.0,0.00359698]
[1745773458049,1.4917681,93916.0,93915.0,0.00359698]
[1745773458554,1.4917681,93916.0,93915.0,0.00159698]
[1745773460255,1.8525681,93916.0,93915.0,0.00159698]
[1745773460457,0.2129039,93909.0,93908.0,0.06604]
[1745773460756,0.2129085,93907.0,93906.0,0.00807655]
[1745773460950,0.2661522,93904.0,93899.0,0.01461802]
[1745773461153,0.4261522,93904.0,93903.0,0.2129107]
[1745773461349,0.4261522,93904.0,93903.0,0.22075989]
[1745773462062,0.5461522,93904.0,93903.0,0.22075989]
[1745773462257,0.5949522,93904.0,93903.0,0.22075989]
[1745773462656,0.5949522,93904.0,93903.0,0.22175989]
[1745773462852,0.28,93904.0,93903.0,0.22175989]
[1745773463160,0.78,93904.0,93903.0,0.22375989]
[1745773463552,0.78,93904.0,93903.0,0.32495989]
[1745773463851,0.9929153,93904.0,93903.0,0.32495989]
[1745773465456,0.78,93904.0,93903.0,0.32495989]
[1745773465955,0.9929153,93904.0,93903.0,0.32495989]
[1745773467860,0.78,93904.0,93903.0,0.32495989]
[1745773470260,0.59524497,93904.0,93903.0,1.28015189]
[1745773470572,0.52815185,93904.0,93903.0,1.28015189]
[1745773470968,0.67815185,93904.0,93903.0,1.28015189]
[1745773471168,0.65,93904.0,93903.0,1.28015189]
[1745773471469,0.65,93904.0,93903.0,0.39119989]
[1745773471659,0.65,93904.0,93903.0,0.11404919]
[1745773471858,0.8629153,93904.0,93903.0,0.01684919]
[1745773472161,0.9829153,93904.0,93903.0,0.22976669]
[1745773472952,0.9829153,93904.0,93903.0,0.22676669]
[1745773473264,1.0341153,93904.0,93903.0,0.22676669]
[1745773473452,1.0341153,93904.0,93903.0,0.22376669]
[1745773475058,1.0341153,93904.0,93903.0,0.22176669]
[1745773475260,1.0341153,93904.0,93903.0,0.22376669]
[1745773476056,1.3949153,93904.0,93903.0,0.22376669]
[1745773477765,0.8212,93904.0,93903.0,0.22376669]
[1745773477974,0.77,93904.0,93903.0,0.22376669]
[1745773478464,0.77,93904.0,93903.0,0.32146669]
[1745773479260,0.77,93904.0,93903.0,0.32246669]
[1745773479462,0.77,93904.0,93903.0,0.32346669]
[1745773481071,0.3078921,93904.0,93903.0,1.33241869]
[1745773481269,0.3608,93922.0,93921.0,0.2128767]
[1745773481469,0.4108,93922.0,93921.0,0.2791167]
[1745773481767,0.4108,93922.0,93921.0,0.2128767]
[1745773481978,0.4108,93922.0,93921.0,0.2791167]
[1745773482276,0.5308,93922.0,93921.0,0.2791167]
[1745773482574,0.5308,93922.0,93921.0,0.3837167]
[1745773482775,0.5308,93922.0,93921.0,0.3857167]
[1745773483072,0.5308,93922.0,93921.0,0.3887167]
[1745773483675,1.0308,93922.0,93921.0,0.3887167]
[1745773484074,0.67,93922.0,93921.0,0.3887167]
[1745773484374,0.67,93922.0,93921.0,0.3897167]
[1745773484578,0.67,93922.0,93921.0,0.3917167]
[1745773485164,0.54047532,93922.0,93921.0,1.0025167]
[1745773485370,0.07784462,93922.0,93921.0,1.7413487]
[1745773485582,0.18510157,93959.0,93947.0,0.2128178]
[1745773485768,0.1552,93948.0,93947.0,0.2790578]
[1745773486271,0.0052,93948.0,93947.0,0.2128178]
[1745773486472,0.0052,93948.0,93947.0,0.3812578]
[1745773486665,1e-07,93948.0,93947.0,1.2699118]
[1745773487265,1e-07,93948.0,93947.0,0.4877018]
[1745773488566,1e-07,93948.0,93947.0,0.4897018]
[1745773488961,1e-07,93948.0,93947.0,0.4907018]
[1745773489977,1e-07,93948.0,93947.0,0.3842578]
[1745773490470,0.0100001,93948.0,93947.0,0.3180178]
[1745773490663,0.0100001,93948.0,93947.0,0.3843378]
[1745773490863,0.0100001,93948.0,93947.0,0.3180178]
[1745773491068,0.1300001,93948.0,93947.0,0.3843378]
[1745773492471,0.1300001,93948.0,93947.0,0.4907818]
[1745773493580,0.1200001,93948.0,93947.0,0.4907818]
[1745773494077,0.1200001,93948.0,93947.0,0.3843378]
[1745773500675,0.2700001,93948.0,93947.0,0.3843378]
[1745773500875,0.2700001,93948.0,93947.0,0.3180178]
[1745773501066,0.2700001,93948.0,93947.0,0.06928]
[1745773501267,0.2700001,93948.0,93947.0,0.2158178]
[1745773501474,0.2700001,93948.0,93947.0,0.2820978]
[1745773501666,0.2700001,93948.0,93947.0,0.2158178]
[1745773501870,0.2700001,93948.0,93947.0,0.2820978]